bitfinex-derivatives/quotes_BTCF0:USTF0_20250309
["timestamp","ask_amount","ask_price","bid_price","bid_amount"]
[1741541013656,0.4371,82324.0,82312.0,0.2839548]
[1741541013954,0.1215078,82314.0,82313.0,0.00018217]
[1741541014159,0.3608,82316.0,82315.0,0.1215064]
[1741541014368,0.3608,82319.0,82313.0,0.00018217]
[1741541014560,0.217,82315.0,82314.0,0.1215078]
[1741541014963,0.3608,82319.0,82318.0,0.1215019]
[1741541015358,0.16593299,82319.0,82313.0,0.00018217]
[1741541015565,0.2199,82318.0,82313.0,0.00018217]
[1741541015759,0.1215038,82317.0,82315.0,0.1215055]
[1741541015954,0.2199,82318.0,82313.0,0.00018217]
[1741541016161,0.1215078,82314.0,82313.0,0.00018217]
[1741541016769,0.1215078,82314.0,82313.0,0.00318217]
[1741541017067,0.12758759,82314.0,82313.0,0.00318217]
[1741541017268,0.13906042,82314.0,82313.0,0.00318217]
[1741541017568,0.50594039,82314.0,82313.0,0.00018217]
[1741541017765,0.50594039,82314.0,82313.0,0.00118217]
[1741541017963,0.121527,82301.0,82300.0,0.1172454]
[1741541018166,0.482327,82301.0,82300.0,0.1172454]
[1741541018860,0.482327,82301.0,82283.0,0.29084351]
[1741541018861,0.3608,82301.0,82284.0,0.00889476]
[1741541019164,0.3608,82301.0,82299.0,0.12153]
[1741541019165,0.2063,82300.0,82299.0,0.12153]
[1741541019365,0.2063,82300.0,82293.0,0.0607694]
[1741541019566,0.2063,82300.0,82294.0,0.1215369]
[1741541019770,0.2063,82300.0,82296.0,0.1215344]
[1741541020066,0.1215329,82297.0,82296.0,0.1215344]
[1741541020259,0.1215374,82294.0,82293.0,0.01694335]
[1741541020565,0.36460014,82299.0,82287.0,0.00018217]
[1741541020765,0.2222,82295.0,82291.0,0.0607707]
[1741541020965,0.1215403,82292.0,82291.0,0.2237]
[1741541021170,0.4823403,82292.0,82291.0,0.2237]
[1741541021369,0.1215418,82291.0,82287.0,0.00018217]
[1741541021561,0.5458418,82291.0,82287.0,0.00018217]
[1741541022071,0.5458418,82291.0,82277.0,0.00916839]
[1741541022072,0.4243,82291.0,82277.0,0.00916839]
[1741541022270,0.20590069,82291.0,82285.0,0.2237]
[1741541022459,0.01694522,82304.0,82290.0,0.3608]
[1741541022672,0.1215248,82303.0,82295.0,0.0607675]
[1741541022969,0.01676305,82304.0,82303.0,0.1215241]
[1741541023171,0.22238228,82307.0,82296.0,0.15276]
[1741541023370,0.1215315,82298.0,82297.0,0.3447325]
[1741541023565,0.1215315,82298.0,82297.0,0.2232]
[1741541024273,0.2221,82300.0,82285.0,0.15216]
[1741541024475,0.4823403,82292.0,82285.0,0.15216]
[1741541024770,0.4823403,82292.0,82285.0,0.51296]
[1741541024971,0.4823403,82292.0,82273.0,0.2106]
[1741541025172,0.121561,82278.0,82277.0,0.2262]
[1741541025373,0.3608,82281.0,82277.0,0.2262]
[1741541025679,0.121561,82278.0,82277.0,0.2262]
[1741541025875,0.121561,82278.0,82277.0,0.003]
[1741541026066,0.343661,82278.0,82277.0,0.003]
[1741541026977,0.1215728,82270.0,82269.0,0.2232]
[1741541027474,0.1215773,82267.0,82266.0,0.01723431]
[1741541027670,0.2179,82277.0,82276.0,0.121564]
[1741541027879,0.2179,82277.0,82274.0,0.0607831]
[1741541028175,0.2179,82277.0,82276.0,0.121564]
[1741541028579,0.121564,82276.0,82275.0,0.2021]
[1741541028776,0.554864,82276.0,82275.0,0.2021]
[1741541029268,0.2179,82277.0,82275.0,0.3236654]
[1741541029578,0.2179,82277.0,82275.0,0.2021]
[1741541029777,0.482364,82276.0,82275.0,0.2021]
[1741541029981,0.1215699,82272.0,82271.0,0.3326713]
[1741541030278,0.1215681,82274.0,82273.0,0.1215677]
[1741541030471,0.6901254,82276.0,82275.0,0.1215654]
[1741541030773,0.121572,82272.0,82269.0,0.6315869]
[1741541031079,0.1215728,82270.0,82269.0,0.21]
[1741541031773,0.2066,82271.0,82270.0,0.1215728]
[1741541031982,0.2066,82271.0,82270.0,0.3382728]
[1741541032277,0.3281713,82271.0,82270.0,0.2167]
[1741541032472,0.3281713,82271.0,82270.0,0.5597728]
[1741541032674,0.2066,82271.0,82270.0,0.5597728]
[1741541032880,0.5674,82271.0,82270.0,0.5597728]
[1741541033076,0.6889713,82271.0,82270.0,0.5597728]
[1741541033578,0.6889713,82271.0,82270.0,0.4382]
[1741541033964,0.2179,82277.0,82270.0,0.4382]
[1741541034164,0.2179,82277.0,82276.0,0.121564]
[1741541034364,0.5787,82277.0,82270.0,0.4382]
[1741541034572,0.1215645,82276.0,82275.0,0.1215654]
[1741541034768,0.3394628,82277.0,82276.0,0.121564]
[1741541035070,0.2179,82277.0,82276.0,0.121564]
[1741541035868,0.2179,82277.0,82266.0,0.01741644]
[1741541036065,0.3608,82269.0,82268.0,0.1823631]
[1741541036265,0.3608,82274.0,82270.0,0.0607857]
[1741541036474,0.225,82276.0,82275.0,0.1215654]
[1741541036978,0.3394625,82277.0,82276.0,0.121564]
[1741541037373,0.2189,82277.0,82276.0,0.121564]
[1741541037566,0.001,82277.0,82276.0,0.121564]
[1741541037967,0.1225625,82277.0,82276.0,0.121564]
[1741541038278,0.3618,82277.0,82273.0,0.0607841]
[1741541038575,0.1215773,82267.0,82266.0,0.38173761]
[1741541038780,0.121576,82268.0,82266.0,0.08172661]
[1741541038981,0.1215773,82267.0,82266.0,0.02093761]
[1741541039175,0.3608,82267.0,82265.0,0.1215802]
[1741541039377,0.1215787,82266.0,82265.0,0.02109432]
[1741541039581,0.1215787,82266.0,82264.0,0.1215814]
[1741541039773,0.1215828,82264.0,82260.0,0.23511454]
[1741541039973,0.1215861,82261.0,82260.0,0.11352834]
[1741541040174,0.2288,82266.0,82260.0,0.11352834]
[1741541040378,0.1215861,82261.0,82260.0,0.11352834]
[1741541040871,0.12560023,82261.0,82260.0,0.11352834]
[1741541041071,0.00401413,82261.0,82260.0,0.1215876]
[1741541041269,0.00018228,82269.0,82268.0,0.1215758]
[1741541041472,0.02107063,82284.0,82273.0,0.0607836]
[1741541041675,0.3608,82294.0,82293.0,0.1215388]
[1741541041875,0.3608,82294.0,82290.0,0.0607715]
[1741541042084,0.3608,82292.0,82277.0,0.0607806]
[1741541042276,0.1215643,82276.0,82274.0,0.4346]
[1741541042472,0.421578,82282.0,82274.0,0.4346]
[1741541042678,0.2179,82294.0,82275.0,0.3608]
[1741541042679,0.00018228,82283.0,82275.0,0.3608]
[1741541042981,0.00018228,82283.0,82282.0,0.1215551]
[1741541043180,0.17958998,82301.0,82294.0,0.1215374]
[1741541043480,0.00336543,82295.0,82294.0,0.37066663]
[1741541043670,0.36416543,82295.0,82282.0,0.3608]
[1741541043874,0.22908058,82294.0,82282.0,0.3608]
[1741541044173,0.1215408,82292.0,82290.0,0.1215432]
[1741541044376,0.22308058,82291.0,82290.0,0.1215432]
[1741541044575,0.22989155,82291.0,82288.0,0.1215457]
[1741541044777,0.1215453,82289.0,82286.0,0.1215477]
[1741541045079,0.22381097,82291.0,82290.0,0.1215433]
[1741541045274,0.00681097,82288.0,82287.0,0.1215477]
[1741541045480,0.01289179,82288.0,82287.0,0.1215477]
[1741541045680,0.01289179,82288.0,82286.0,0.1215477]
[1741541045884,0.00608082,82287.0,82286.0,0.1215477]
[1741541046078,0.01415492,82288.0,82287.0,0.1215477]
[1741541046471,0.01715492,82288.0,82287.0,0.14816]
[1741541046778,0.00908067,82288.0,82287.0,0.14816]
[1741541046975,0.00908067,82288.0,82287.0,0.2697077]
[1741541047279,0.007,82288.0,82282.0,0.3608]
[1741541047483,0.01381097,82288.0,82283.0,0.14796]
[1741541047686,0.01381097,82288.0,82287.0,0.1215477]
[1741541047983,0.01181097,82288.0,82287.0,0.1215477]
[1741541048178,0.01789149,82288.0,82287.0,0.1215477]
[1741541048379,0.01789149,82288.0,82284.0,0.2201]
[1741541048584,0.1215507,82285.0,82284.0,0.2201]
[1741541048776,0.12763122,82285.0,82284.0,0.2201]
[1741541048975,0.44248052,82285.0,82284.0,0.2201]
[1741541049176,0.22849149,82285.0,82284.0,0.2201]
[1741541049574,0.01289149,82285.0,82284.0,0.2201]
[1741541049784,0.49524219,82285.0,82284.0,0.2201]
[1741541049985,0.01289149,82285.0,82284.0,0.2201]
[1741541050380,0.22849149,82285.0,82284.0,0.2201]
[1741541050586,0.01389149,82285.0,82284.0,0.3416521]
[1741541051183,0.01689149,82285.0,82284.0,0.36866]
[1741541051390,0.13844219,82285.0,82284.0,0.36898]
[1741541051688,0.01689149,82285.0,82284.0,0.3416521]
[1741541052088,0.02226595,82285.0,82284.0,0.4928121]
[1741541052287,0.02226595,82285.0,82284.0,0.3436521]
[1741541052483,0.01489149,82285.0,82284.0,0.4925321]
[1741541052796,0.17958998,82292.0,82284.0,0.4925321]
[1741541052797,0.01502103,82301.0,82295.0,0.1215359]
[1741541053087,0.28522476,82315.0,82300.0,0.0607639]
[1741541053288,0.0607566,82311.0,82301.0,0.2096]
[1741541053478,0.4485,82309.0,82308.0,0.1215167]
[1741541053891,0.4525077,82309.0,82308.0,0.1215167]
[1741541054090,0.47432555,82309.0,82308.0,0.1215167]
[1741541054290,0.47432555,82309.0,82308.0,0.4823167]
[1741541054291,0.02582555,82309.0,82308.0,0.4823167]
[1741541054792,0.02582555,82309.0,82308.0,0.6315967]
[1741541055193,0.02181785,82309.0,82308.0,0.6315967]
[1741541055389,1e-07,82310.0,82309.0,0.1215152]
[1741541055594,0.35309478,82317.0,82316.0,0.1215049]
[1741541055894,0.35309478,82317.0,82316.0,0.6963049]
[1741541056084,0.0607321,82344.0,82316.0,0.9343919]
[1741541056288,0.1214714,82339.0,82335.0,0.1214765]
[1741541056488,0.4446,82338.0,82337.0,0.1214739]
[1741541056697,0.4446,82338.0,82337.0,0.5691739]
[1741541057085,0.24653457,82338.0,82337.0,0.5691739]
[1741541057395,0.02113457,82338.0,82337.0,0.7180539]
[1741541057697,0.00018228,82346.0,82343.0,0.121465]
[1741541057998,0.00018228,82346.0,82344.0,0.5691636]
[1741541059297,0.00018228,82346.0,82345.0,0.1214621]
[1741541059598,0.00018228,82346.0,82345.0,0.5691621]
[1741541060595,0.007,82345.0,82344.0,0.002]
[1741541060796,0.1284621,82345.0,82344.0,0.001]
[1741541061092,0.4882621,82345.0,82344.0,0.001]
[1741541061487,0.4882621,82345.0,82336.0,0.21396]
[1741541061488,0.0607352,82340.0,82336.0,0.21396]
[1741541061795,0.1214803,82334.0,82333.0,0.1214788]
[1741541061991,0.1214842,82330.0,82329.0,0.00018228]
[1741541062393,0.1204842,82330.0,82329.0,0.00018228]
[1741541063391,0.14170459,82330.0,82329.0,0.00018228]
[1741541063994,0.1215034,82317.0,82316.0,0.3608]
[1741541064197,0.1215034,82317.0,82316.0,0.4823049]
[1741541064700,0.57978,82323.0,82306.0,0.1462]
[1741541064701,0.1215182,82307.0,82306.0,0.0607591]
[1741541064900,0.57978,82323.0,82309.0,0.1215152]
[1741541064901,0.0607569,82310.0,82309.0,0.1215152]
[1741541065392,0.1215064,82315.0,82314.0,0.1215078]
[1741541065598,0.14258652,82315.0,82314.0,0.1215078]
[1741541066399,0.005,82317.0,82316.0,0.1215049]
[1741541066603,0.1265034,82317.0,82316.0,0.1215049]
[1741541066802,0.005,82317.0,82316.0,0.1215049]
[1741541066997,0.005,82317.0,82316.0,0.2667049]
[1741541067198,0.00018216,82318.0,82317.0,0.1215034]
[1741541067398,0.02217209,82318.0,82317.0,0.5869034]
[1741541067595,0.12168406,82318.0,82317.0,0.4654]
[1741541067802,0.12168406,82318.0,82317.0,0.5869034]
[1741541067993,0.00018216,82318.0,82316.0,0.1452]
[1741541068194,0.1215034,82317.0,82316.0,0.1452]
[1741541068394,0.00018216,82318.0,82309.0,0.61012]
[1741541068594,0.1215137,82310.0,82309.0,0.61012]
[1741541068995,0.1215137,82310.0,82309.0,0.14472]
[1741541069290,0.1195137,82310.0,82309.0,0.14472]
[1741541069699,0.421556,82312.0,82301.0,0.00018216]
[1741541069700,0.1215211,82305.0,82301.0,0.14522216]
[1741541069893,0.1215211,82305.0,82301.0,0.00018216]
[1741541071094,0.3466211,82305.0,82301.0,0.00018216]
[1741541071296,0.3486211,82305.0,82301.0,0.00018216]
[1741541071601,0.1215256,82302.0,82301.0,0.00018216]
[1741541072002,0.14329903,82302.0,82301.0,0.00018216]
[1741541072803,0.1215566,82281.0,82280.0,0.11342365]
[1741541073118,0.121561,82278.0,82277.0,0.21743282]
[1741541073406,0.121561,82278.0,82277.0,0.23789455]
[1741541073995,0.339461,82278.0,82277.0,0.23789455]
[1741541074595,0.340461,82278.0,82277.0,0.24489455]
[1741541074801,0.340461,82278.0,82277.0,0.02810173]
[1741541075209,0.701261,82278.0,82277.0,0.02810173]
[1741541075408,0.340461,82278.0,82277.0,0.02810173]
[1741541075608,0.701261,82278.0,82277.0,0.02810173]
[1741541076508,0.728961,82278.0,82277.0,0.007]
[1741541076703,0.368161,82278.0,82277.0,0.007]
[1741541076903,0.728961,82278.0,82277.0,0.007]
[1741541077110,0.369161,82278.0,82277.0,0.011]
[1741541077303,0.2476,82278.0,82277.0,0.011]
[1741541077606,0.369161,82278.0,82277.0,0.011]
[1741541077807,0.2476,82278.0,82277.0,0.1325625]
[1741541078011,0.002,82278.0,82277.0,0.1325625]
[1741541078209,0.129561,82278.0,82277.0,0.5846625]
[1741541078514,0.008,82278.0,82277.0,0.4631]
[1741541078714,0.008,82278.0,82277.0,0.5846625]
[1741541078911,0.129561,82278.0,82277.0,0.4631]
[1741541079104,0.371961,82278.0,82277.0,0.4631]
[1741541079907,0.369961,82278.0,82277.0,0.4631]
[1741541081410,0.369961,82278.0,82277.0,0.4591]
[1741541081411,0.373961,82278.0,82277.0,0.4591]
[1741541081912,0.21542467,82289.0,82283.0,0.1215536]
[1741541082106,0.2032569,82301.0,82300.0,0.1215285]
[1741541082307,0.2032569,82301.0,82300.0,0.6963285]
[1741541082514,0.3247839,82301.0,82300.0,0.5748]
[1741541082807,0.121527,82301.0,82300.0,0.214]
[1741541083014,0.14319204,82301.0,82300.0,0.214]
[1741541083509,0.14319204,82301.0,82300.0,0.3355285]
[1741541083510,0.02166504,82301.0,82300.0,0.3355285]
[1741541083705,0.00018228,82309.0,82308.0,0.1215167]
[1741541083906,0.00018228,82309.0,82300.0,0.23507457]
[1741541084112,0.121527,82301.0,82300.0,0.214]
[1741541084307,0.02144603,82301.0,82300.0,0.214]
[1741541084503,0.4847,82304.0,82300.0,0.213]
[1741541084817,0.00018228,82309.0,82308.0,0.1215167]
[1741541085014,0.00018228,82309.0,82303.0,0.3608]
[1741541085217,0.00018228,82309.0,82308.0,0.1215167]
[1741541085514,0.12169798,82309.0,82308.0,0.14008]
[1741541085720,0.00018228,82309.0,82308.0,0.2615967]
[1741541085910,0.00018228,82309.0,82308.0,0.2614367]
[1741541086213,0.00018228,82309.0,82308.0,0.2613967]
[1741541086718,0.00018228,82309.0,82308.0,0.7298967]
[1741541086918,0.00318228,82309.0,82308.0,0.7298967]
[1741541087118,0.02462082,82309.0,82308.0,0.75132666]
[1741541087710,0.02462082,82309.0,82308.0,0.7298967]
[1741541089715,0.14613602,82309.0,82308.0,0.60838]
[1741541089921,0.02462082,82309.0,82308.0,0.60838]
[1741541090115,0.02462082,82309.0,82308.0,0.7298967]
[1741541091723,0.14613602,82309.0,82308.0,0.60838]
[1741541092021,0.24732082,82309.0,82308.0,0.7298967]
[1741541093426,0.02262082,82309.0,82308.0,0.7298967]
[1741541094931,0.00018228,82309.0,82308.0,0.7298967]
[1741541096726,0.10753118,82317.0,82308.0,0.7298967]
[1741541096727,0.38710695,82313.0,82312.0,0.1215108]
[1741541097121,0.2222,82313.0,82312.0,0.1215108]
[1741541097325,0.10753118,82317.0,82316.0,0.1215049]
[1741541097522,0.25070174,82317.0,82316.0,0.1215049]
[1741541098028,0.1215049,82316.0,82315.0,0.3425059]
[1741541098217,0.3437049,82316.0,82315.0,0.3425059]
[1741541098421,0.3437049,82316.0,82315.0,0.5747059]
[1741541098825,0.3437049,82316.0,82315.0,0.4532]
[1741541099028,0.3437049,82316.0,82315.0,0.221]
[1741541099531,0.3437049,82316.0,82315.0,0.3425064]
[1741541099925,0.4398,82316.0,82315.0,0.3425064]
[1741541100533,0.4398,82316.0,82315.0,0.4557]
[1741541100732,0.5613049,82316.0,82315.0,0.4557]
[1741541101121,0.1215173,82308.0,82303.0,0.7830416]
[1741541101325,0.1215102,82313.0,82312.0,0.1215097]
[1741541101527,0.1215123,82311.0,82310.0,0.0607562]
[1741541101730,0.1215123,82311.0,82308.0,0.0607583]
[1741541101731,0.1215152,82309.0,82308.0,0.0607583]
[1741541101929,0.1215152,82309.0,82308.0,0.2954583]
[1741541102232,0.4522,82310.0,82304.0,0.2216]
[1741541102428,0.4522,82310.0,82291.0,0.21679282]
[1741541102429,0.121527,82301.0,82296.0,0.256213]
[1741541102622,0.121527,82301.0,82297.0,0.2309]
[1741541102820,0.121527,82301.0,82291.0,0.35131282]
[1741541102821,0.482327,82301.0,82291.0,0.35131282]
[1741541103031,0.0607591,82307.0,82291.0,0.35131282]
[1741541103032,0.5787,82324.0,82308.0,0.0607581]
[1741541103226,0.4492,82311.0,82309.0,0.2309]
[1741541103421,0.1215137,82310.0,82307.0,0.1215173]
[1741541103731,0.0607517,82318.0,82307.0,0.1215173]
[1741541103732,0.3608,82349.0,82308.0,0.5889]
[1741541104029,0.2136487,82332.0,82331.0,0.3608]
[1741541104225,0.0921674,82332.0,82327.0,0.21396]
[1741541104420,0.1215019,82318.0,82317.0,0.21396]
[1741541104631,0.0921674,82319.0,82318.0,0.1215019]
[1741541105133,0.0921674,82319.0,82318.0,0.5805019]
[1741541106530,0.0921674,82319.0,82318.0,0.459]
[1741541106726,0.1215123,82311.0,82299.0,0.21392]
[1741541106928,0.1215123,82311.0,82304.0,0.2299]
[1741541107129,0.1215123,82311.0,82305.0,0.237]
[1741541107327,0.14866274,82311.0,82305.0,0.237]
[1741541108735,0.37606274,82311.0,82305.0,0.237]
[1741541109325,0.25455044,82311.0,82306.0,0.121519]
[1741541109521,0.37606274,82311.0,82305.0,0.237]
[1741541109932,0.37806274,82311.0,82305.0,0.237]
[1741541110941,0.2294,82311.0,82310.0,0.12169598]
[1741541111324,0.2294,82311.0,82310.0,0.00018228]
[1741541111534,0.2294,82311.0,82310.0,0.33679598]
[1741541111733,0.2294,82311.0,82310.0,0.56079598]
[1741541113539,0.36123755,82326.0,82310.0,0.57300228]
[1741541113726,0.36123755,82326.0,82325.0,0.1214916]
[1741541113931,0.36123755,82326.0,82324.0,0.13372]
[1741541114435,0.36123755,82326.0,82325.0,0.4587]
[1741541114739,0.14333755,82326.0,82325.0,0.5801916]
[1741541115038,0.0607254,82353.0,82325.0,0.4587]
[1741541115240,0.36453606,82347.0,82337.0,0.1214739]
[1741541115436,0.36453606,82347.0,82337.0,0.2550339]
[1741541115437,0.24307646,82347.0,82337.0,0.2550339]
[1741541115628,0.36453606,82347.0,82337.0,0.2550339]
[1741541116035,0.00011864,82346.0,82337.0,0.73084303]
[1741541116232,0.00011864,82346.0,82344.0,0.1214636]
[1741541116233,0.16379283,82345.0,82344.0,0.1214636]
[1741541116430,0.35714669,82372.0,82356.0,0.1214459]
[1741541116634,0.15603332,82357.0,82356.0,0.63243503]
[1741541117344,0.32143202,82368.0,82362.0,0.121437]
[1741541117534,0.32143202,82368.0,82362.0,0.16554661]
[1741541118144,0.32143202,82368.0,82362.0,0.04410961]
[1741541118334,0.2219,82367.0,82362.0,0.04410961]
[1741541118536,0.2219,82367.0,82362.0,0.16554661]
[1741541118735,0.34333,82367.0,82362.0,0.16554661]
[1741541118939,0.2219,82367.0,82362.0,0.37383748]
[1741541119142,0.32143202,82368.0,82362.0,0.37383748]
[1741541119935,0.32143202,82368.0,82362.0,0.39082146]
[1741541120332,0.32143202,82368.0,82362.0,0.39081026]
[1741541120537,0.2207,82384.0,82383.0,0.1214061]
[1741541120736,0.2374,82393.0,82383.0,0.4676061]
[1741541120938,0.1214031,82385.0,82384.0,0.2287]
[1741541121545,0.1214046,82384.0,82383.0,0.21388]
[1741541121735,0.3559046,82384.0,82383.0,0.21388]
[1741541121934,0.7167046,82384.0,82383.0,0.21388]
[1741541122149,0.7167046,82384.0,82369.0,0.13176]
[1741541122150,0.1214252,82370.0,82369.0,0.21388]
[1741541122340,0.0607142,82368.0,82364.0,0.1214333]
[1741541122648,0.0607165,82365.0,82362.0,0.1214364]
[1741541122843,0.1214427,82359.0,82357.0,0.4822439]
[1741541123038,0.1214427,82359.0,82282.0,0.05097093]
[1741541123039,0.3608,82361.0,82344.0,0.02743212]
[1741541123236,0.3608,82356.0,82346.0,0.08174]
[1741541123436,0.1821909,82346.0,82345.0,0.00018216]
[1741541123742,0.120465,82343.0,82326.0,0.21384]
[1741541123948,0.1214724,82338.0,82332.0,0.21678875]
[1741541124138,0.1214798,82333.0,82332.0,0.21678875]
[1741541124335,0.2526798,82333.0,82332.0,0.21678875]
[1741541124643,0.223,82339.0,82332.0,0.21678875]
[1741541124852,0.223,82339.0,82338.0,0.4822724]
[1741541125437,0.006,82363.0,82362.0,0.121437]
[1741541125641,0.006,82363.0,82357.0,0.2104]
[1741541125846,0.0607185,82362.0,82356.0,0.3608]
[1741541126054,0.1214444,82357.0,82356.0,0.3608]
[1741541126351,0.1214527,82352.0,82351.0,0.1214528]
[1741541126941,0.1214527,82352.0,82348.0,0.36098216]
[1741541126942,0.0607272,82351.0,82348.0,0.36098216]
[1741541127147,0.1214562,82349.0,82348.0,0.36098216]
[1741541127348,0.1214562,82349.0,82348.0,0.00018216]
[1741541129648,0.1214562,82349.0,82348.0,0.12163986]
[1741541129848,0.2136,82350.0,82349.0,0.1214562]
[1741541130049,0.2136,82350.0,82349.0,0.3454562]
[1741541130347,0.002,82352.0,82351.0,0.1214532]
[1741541131150,0.2211,82364.0,82351.0,0.1214532]
[1741541131151,0.00018176,82365.0,82351.0,0.1214532]
[1741541131356,0.00018176,82365.0,82364.0,0.1214341]
[1741541131556,0.3283073,82384.0,82383.0,0.1214061]
[1741541131755,0.121412,82380.0,82379.0,0.1821179]
[1741541131952,0.121412,82380.0,82379.0,0.2847059]
[1741541132344,0.3608,82395.0,82379.0,0.224]
[1741541132545,0.3608,82395.0,82380.0,0.19161051]
[1741541132847,0.1213972,82389.0,82388.0,0.3608]
[1741541133251,0.3415972,82389.0,82388.0,0.4821987]
[1741541133450,0.2202,82389.0,82388.0,0.4821987]
[1741541133652,0.3415972,82389.0,82388.0,0.9044987]
[1741541133854,0.2202,82389.0,82388.0,0.9044987]
[1741541134055,0.1213855,82399.0,82398.0,0.1213825]
[1741541134250,0.2202,82399.0,82396.0,0.3608]
[1741541134457,0.2202,82399.0,82398.0,0.121384]
[1741541134853,0.3415825,82399.0,82398.0,0.673044]
[1741541135254,0.221381,82400.0,82399.0,0.1213825]
[1741541135455,0.1,82400.0,82399.0,0.5436825]
[1741541135754,0.1,82400.0,82399.0,0.9044825]
[1741541136650,0.1,82400.0,82399.0,1.1183225]
[1741541137150,0.103,82400.0,82399.0,1.1183225]
[1741541137763,0.2787785,82417.0,82406.0,0.0606858]
[1741541137962,0.1213633,82412.0,82411.0,0.3608]
[1741541138158,0.2179,82428.0,82411.0,0.3608]
[1741541138358,0.0606729,82424.0,82414.0,0.1213596]
[1741541138554,0.4423,82423.0,82422.0,0.1213486]
[1741541138754,0.6521,82436.0,82422.0,0.3608]
[1741541138969,0.0606679,82431.0,82423.0,0.12796]
[1741541139256,0.218,82430.0,82429.0,0.4821383]
[1741541139458,0.46024782,82436.0,82435.0,0.1213295]
[1741541139652,0.3608,82451.0,82448.0,0.1213104]
[1741541139858,0.2162,82450.0,82438.0,0.3608]
[1741541140158,0.1213236,82439.0,82438.0,0.3608]
[1741541140860,0.1213265,82437.0,82436.0,0.00018204]
[1741541141062,0.1213265,82437.0,82436.0,0.36098204]
[1741541141360,0.3608,82437.0,82435.0,0.001]
[1741541141659,0.1213633,82413.0,82409.0,0.1213666]
[1741541141853,0.3423638,82412.0,82410.0,0.1213657]
[1741541142259,0.221,82412.0,82411.0,0.1213648]
[1741541142457,0.1213659,82411.0,82410.0,0.1213654]
[1741541142652,0.22,82412.0,82410.0,0.1213654]
[1741541142850,0.22,82412.0,82411.0,0.1213648]
[1741541143064,0.219,82412.0,82411.0,0.1213648]
[1741541143260,0.3403633,82412.0,82411.0,0.1213648]
[1741541143466,0.1213678,82409.0,82408.0,0.37003954]
[1741541144274,0.1213678,82409.0,82408.0,0.3608]
[1741541144461,0.1213678,82409.0,82371.0,0.0607113]
[1741541144462,0.3679,82409.0,82370.0,0.96969402]
[1741541144764,0.58749783,82410.0,82370.0,0.29020351]
[1741541144765,0.1214208,82373.0,82370.0,0.29020351]
[1741541144959,0.4822238,82371.0,82370.0,0.29020351]
[1741541145154,0.1214238,82371.0,82370.0,0.29020351]
[1741541146058,0.1214238,82371.0,82370.0,0.29220351]
[1741541146259,0.35454153,82371.0,82370.0,0.29220351]
[1741541146557,0.0607169,82365.0,82362.0,0.00018204]
[1741541146758,0.4822355,82363.0,82362.0,0.00018204]
[1741541147165,0.0607212,82359.0,82351.0,0.36067902]
[1741541147365,0.4822518,82352.0,82351.0,0.34632133]
[1741541147667,0.1214591,82347.0,82346.0,0.43259827]
[1741541147871,0.1214591,82347.0,82322.0,0.0607475]
[1741541147872,0.1822298,82333.0,82322.0,0.0607475]
[1741541148164,0.0607443,82327.0,82320.0,1.41328936]
[1741541148364,0.0607443,82327.0,82320.0,1.04329953]
[1741541148365,0.0607478,82323.0,82320.0,1.04329953]
[1741541148562,0.4371,82326.0,82325.0,0.1214916]
[1741541148763,0.5585901,82326.0,82325.0,0.1214916]
[1741541149356,0.6702674,82333.0,82332.0,0.1214813]
[1741541149566,0.3702092,82333.0,82332.0,0.1214813]
[1741541149962,0.00018216,82336.0,82335.0,0.1214768]
[1741541150662,0.12165756,82336.0,82335.0,0.1214768]
[1741541150857,0.00018216,82336.0,82335.0,0.1214768]
[1741541151267,0.12165756,82336.0,82335.0,0.1214768]
[1741541151768,0.00018216,82336.0,82335.0,0.1214768]
[1741541152870,0.121454,82351.0,82335.0,0.37328902]
[1741541153068,0.1214614,82346.0,82345.0,0.0607309]
[1741541153664,0.1214614,82346.0,82343.0,0.186692]
[1741541153665,0.505921,82359.0,82354.0,0.1214478]
[1741541153871,0.1214568,82350.0,82349.0,0.1214542]
[1741541154170,0.0607295,82348.0,82343.0,0.12596]
[1741541154371,0.0607295,82348.0,82335.0,0.21384]
[1741541154372,0.1214665,82342.0,82341.0,0.00018216]
[1741541154967,0.4822665,82342.0,82341.0,0.00018216]
[1741541155476,0.3608,82342.0,82311.0,0.0607558]
[1741541155774,0.0607448,82327.0,82326.0,0.1214863]
[1741541155971,0.1214864,82330.0,82329.0,0.1214806]
[1741541156167,0.2469183,82335.0,82334.0,0.1214783]
[1741541156367,0.76752,82341.0,82324.0,0.2242]
[1741541156574,0.4376,82341.0,82340.0,0.1214695]
[1741541156774,0.3608,82342.0,82341.0,0.121468]
[1741541157080,0.00018216,82343.0,82342.0,0.1214665]
[1741541157670,0.00018216,82343.0,82342.0,0.3428665]
[1741541157974,0.125,82372.0,82342.0,0.23926034]
[1741541158175,0.182165,82360.0,82359.0,0.1214409]
[1741541158371,0.5386332,82365.0,82364.0,0.1214341]
[1741541158781,0.121437,82363.0,82362.0,0.1214369]
[1741541159075,0.121437,82363.0,82362.0,0.5552369]
[1741541159474,0.121437,82363.0,82362.0,0.4338]
[1741541159671,0.538637,82363.0,82362.0,0.4338]
[1741541160176,0.005,82365.0,82364.0,0.1214341]
[1741541160383,0.1214355,82363.0,82362.0,0.4338]
[1741541160574,0.1214355,82363.0,82355.0,0.36098216]
[1741541160575,0.005,82365.0,82355.0,0.36098216]
[1741541160778,0.1214459,82356.0,82355.0,0.36098216]
[1741541160980,0.1214459,82356.0,82355.0,0.54902946]
[1741541161491,0.4822459,82356.0,82355.0,0.00018216]
[1741541161683,0.3332459,82356.0,82355.0,0.00018216]
[1741541161879,0.3332459,82356.0,82355.0,0.12162946]
[1741541162073,0.002,82356.0,82355.0,0.12162946]
[1741541162278,0.002,82356.0,82355.0,1.03474946]
[1741541163080,0.3608,82375.0,82370.0,0.1214252]
[1741541163280,0.12492,82384.0,82370.0,0.1214252]
[1741541163584,0.0606992,82389.0,82370.0,0.1214252]
[1741541163776,0.0606992,82389.0,82369.0,0.65364]
[1741541163777,0.4229,82388.0,82369.0,0.65428]
[1741541163974,0.3608,82370.0,82369.0,0.7750628]
[1741541164170,0.4822252,82370.0,82369.0,0.65364]
[1741541164373,0.4822252,82370.0,82369.0,0.21384]
[1741541164574,0.0607187,82362.0,82355.0,0.21384]
[1741541164875,0.121465,82343.0,82342.0,0.12492]
[1741541165187,0.121465,82343.0,82342.0,0.4642865]
[1741541165373,0.0607293,82348.0,82342.0,0.34282]
[1741541165576,0.1214557,82351.0,82350.0,0.1214529]
[1741541165776,0.1214577,82349.0,82348.0,0.121456]